fUST/lending_fUST_20250309
["ID","MTS","AMOUNT","RATE_DAILY","PERIOD"]
[355746202,1741526954816,-500.0,0.00032198,2]
[355746203,1741526954842,-500.0,0.00032198,2]
[355746204,1741526954866,-500.0,0.00032198,2]
[355746205,1741526954893,-500.0,0.00032198,2]
[355746206,1741526954917,-500.0,0.00032198,2]
[355746207,1741526954941,-500.0,0.00032198,2]
[355746208,1741526954966,-500.0,0.00032198,2]
[355746209,1741526954991,-500.0,0.00032198,2]
[355746210,1741526955016,-500.0,0.00032198,2]
[355746211,1741526955040,-500.0,0.00032198,2]
[355746212,1741526955065,-500.0,0.00032198,2]
[355746213,1741526955089,-542.32444655,0.00032198,2]
[355746214,1741526955114,-500.0,0.00032198,2]
[355746215,1741526955139,-500.0,0.00032198,2]
[355746216,1741526955165,-500.0,0.00032198,2]
[355746217,1741526955191,-500.0,0.00032198,2]
[355746218,1741526955217,-500.0,0.00032198,2]
[355746219,1741526955244,-500.0,0.00032198,2]
[355746220,1741526955269,-500.0,0.00032198,2]
[355746221,1741526955295,-500.0,0.00032198,2]
[355746222,1741526955320,-500.0,0.00032198,2]
[355746223,1741526955345,-500.0,0.00032198,2]
[355746224,1741526955370,-500.0,0.00032198,2]
[355746225,1741526955395,-500.0,0.00032198,2]
[355746226,1741526955420,-500.0,0.00032198,2]
[355746227,1741526955446,-500.0,0.00032198,2]
[355746228,1741526955471,-500.0,0.00032198,2]
[355746229,1741526955496,-500.0,0.00032198,2]
[355746230,1741526955521,-500.0,0.00032198,2]
[355746231,1741526955548,-500.0,0.00032198,2]
[355746232,1741526955576,-500.0,0.00032198,2]
[355746233,1741526955602,-500.0,0.00032198,2]
[355746234,1741526955627,-500.0,0.00032198,2]
[355746235,1741526955653,-500.0,0.00032198,2]
[355746236,1741526955677,-500.0,0.00032198,2]
[355746237,1741526955702,-500.0,0.00032198,2]
[355746238,1741526955726,-500.0,0.00032198,2]
[355746239,1741526955749,-500.0,0.00032198,2]
[355746240,1741526955774,-500.0,0.00032198,2]
[355746241,1741526955798,-500.0,0.00032198,2]
[355746242,1741526955822,-500.0,0.00032198,2]
[355746243,1741526955845,-500.0,0.00032198,2]
[355746244,1741526955872,-500.0,0.00032198,2]
[355746245,1741526955899,-500.0,0.00032198,2]
[355746246,1741526955925,-500.0,0.00032198,2]
[355746247,1741526955951,-500.0,0.00032198,2]
[355746248,1741526955977,-375.0,0.00032198,2]
[355746249,1741526956003,-500.0,0.00032198,2]
[355746250,1741526956026,-500.0,0.000322,5]
[355746251,1741526956047,-500.0,0.000322,2]
[355746252,1741526956068,-500.0,0.000322,2]
[355746253,1741526956090,-369.34671014,0.00032201,2]
[355746254,1741526956113,-500.0,0.00032201,2]
[355746255,1741526956134,-500.0,0.00032201,2]
[355746256,1741526956156,-211.74392855,0.00032201,2]
[355746257,1741526956178,-24900.0,0.00032202,2]
[355746258,1741526956201,-300.0,0.00033,120]
[355746259,1741526956329,-157.11897997,0.00033025,5]
[355746260,1741526956350,-500.0,0.00034057,5]
[355746261,1741526956371,-500.0,0.00034057,2]
[355746262,1741526956392,-312.3129368,0.00034057,5]
[355746263,1741526956412,-297.99655969,0.00034057,5]
[355746264,1741526956433,-1193.23024582,0.00035099,2]
[355746265,1741526956453,-188.252,0.00035557,5]
[355746266,1741526956475,-174.008,0.00035557,5]
[355746267,1741526956495,-57095.4697318,0.00035616,11]
[355746268,1741526956518,-500.0,0.00035767,2]
[355746269,1741526956540,-267.583703,0.0003589,2]
[355746270,1741526956565,-1024.92353348,0.00035929,2]
[355746271,1741526956588,-337.16998755,0.000362,98]
[355746272,1741526956748,-23244.95077268,0.00037,5]
[355746273,1741526956770,-1786.26,0.00037,30]
[355746274,1741526956792,-337.16998751,0.00037611,106]
[355746275,1741526956814,-1000.0,0.00037679,5]
[355746276,1741526956834,-500.0,0.00037679,2]
[355746277,1741526956854,-500.0,0.00037783,5]
[355746278,1741526956875,-1002.40982123,0.000378,2]
[355746279,1741526956895,-185.92369866,0.00038599,2]
[355746280,1741526956916,-600.0,0.00038658,2]
[355746281,1741526956936,-162.8,0.00038671,2]
[355746282,1741526956957,-162.8,0.00038671,2]
[355746283,1741526956977,-162.8,0.00038671,2]
[355746284,1741526956997,-162.8,0.00038671,2]
[355746285,1741526957020,-162.8,0.00038671,2]
[355746286,1741526957041,-518.82,0.00038672,3]
[355746287,1741526957062,-15073.55262127,0.00038682,2]
[355746288,1741526957083,-656.69200147,0.00038699,2]
[355746289,1741526969118,-1966.14003953,0.00038699,2]
[355746290,1741526969140,-500.0,0.000387,5]
[355746291,1741526969161,-580.51,0.000387,30]
[355746292,1741526969182,-622.2,0.00038713,2]
[355746293,1741526969203,-1297.32358209,0.00038768,2]
[355746294,1741526969223,-7356.3336099,0.00038783,2]
[355746295,1741526969243,-250.0,0.00038873,2]
[355746296,1741526969265,-1116.00068554,0.000389,8]
[355746297,1741526969287,-1128.43540584,0.00039537,2]
[355746298,1741526969309,-11270.06761967,0.00039747,3]
[355746299,1741526970124,-5595.75046457,0.00039747,3]
[355746327,1741527031883,-503.67240689,0.00037068,5]
[355746329,1741527031892,-151.0,0.00038658,2]
[355746331,1741527031901,-264.55787418,0.00038864,5]
[355746343,1741527032004,-235.44212582,0.00038864,5]
[355746345,1741527032014,-4687.45365656,0.00039747,3]
[355746347,1741527032023,-300.0,0.0004,120]
[355746349,1741527032032,-46410.35272992,0.0004,30]
[355746605,1741527037715,-567540.94191107,0.0004,30]
[355746606,1741527037726,-185.92369866,0.00040896,2]
[355746607,1741527037735,-328.08132486,0.00040996,2]
[355746608,1741527037744,-166.53191798,0.00041096,2]
[355746609,1741527037754,-267.583703,0.00041211,2]
[355746610,1741527037764,-337.16998751,0.00043123,120]
[355746611,1741527037773,-1786.26,0.000432,30]
[355746612,1741527037782,-179.67638208,0.00043518,29]
[355746614,1741527037792,-291.85692208,0.00043562,120]
[355746615,1741527037802,-416.66666667,0.00043672,2]
[355746616,1741527037812,-183.77,0.00043834,30]
[355746617,1741527037822,-500.0,0.00043835,120]
[355746618,1741527037832,-1000.0,0.00044179,10]
[355746619,1741527037842,-1000.0,0.00044343,10]
[355746620,1741527037851,-500.0,0.00044383,120]
[355746621,1741527037861,-580.51,0.000444,30]
[355746622,1741527037871,-162.5,0.00044575,120]
[355746623,1741527037881,-7148.68049798,0.00044758,2]
[355746624,1741527037890,-2000.0,0.00044803,4]
[355746625,1741527037900,-162.5,0.00044904,120]
[355746626,1741527037909,-500.0,0.00044931,120]
[355746627,1741527037919,-162.5,0.0004526,120]
[355746628,1741527037928,-500.0,0.00045479,120]
[355746629,1741527037939,-162.5,0.00045589,120]
[355746630,1741527037948,-153.0,0.00045902,2]
[355746631,1741527037958,-153.0,0.00045902,2]
[355746632,1741527037968,-153.0,0.00045902,2]
[355746633,1741527037977,-153.0,0.00045902,2]
[355746634,1741527037992,-153.0,0.00045902,2]
[355746635,1741527038002,-153.0,0.00045902,2]
[355746636,1741527038012,-153.0,0.00045904,2]
[355746637,1741527038021,-153.0,0.00045904,2]
[355746638,1741527038031,-153.0,0.00045904,2]
[355746639,1741527038041,-153.0,0.00045904,2]
[355746640,1741527038051,-153.0,0.00045904,2]
[355746641,1741527038061,-153.0,0.00045904,2]
[355746642,1741527038071,-153.0,0.00045904,2]
[355746643,1741527038081,-153.0,0.00045904,2]
[355746644,1741527038090,-153.0,0.00045904,2]
[355746645,1741527038100,-153.0,0.00045904,2]
[355746646,1741527038110,-153.0,0.00045904,2]
[355746647,1741527038120,-153.0,0.00045904,2]
[355746648,1741527038129,-153.0,0.00045904,2]
[355746649,1741527038139,-153.0,0.00045904,2]
[355746650,1741527038149,-153.0,0.00045904,2]
[355746651,1741527038159,-162.5,0.00045945,120]
[355746652,1741527038169,-301.15622018,0.00046,2]
[355746653,1741527038179,-6543.40897514,0.00046,19]
[355746654,1741527038189,-78452.60659166,0.00046,8]
[355746655,1741527038198,-500.0,0.00046027,120]
[355746656,1741527038209,-162.5,0.00046274,120]
[355746657,1741527038218,-1786.26,0.000463,30]
[355746658,1741527038228,-32575.99393,0.00046439,14]
[355746659,1741527038237,-11114.21694278,0.0004644,2]
[355746660,1741527038247,-21553.2717408,0.00046445,4]
[355746661,1741527038256,-150.0,0.00046455,30]
[355746662,1741527038266,-86213.0869633,0.00046455,4]
[355746663,1741527038275,-151.0,0.00046465,120]
[355746664,1741527038284,-151.0,0.00046465,120]
[355746665,1741527038294,-151.0,0.00046465,120]
[355746666,1741527038303,-151.0,0.00046465,120]
[355746667,1741527038313,-151.0,0.00046465,120]
[355746668,1741527038322,-151.0,0.00046465,120]
[355746669,1741527038332,-277.714906,0.00046465,120]
[355746670,1741527038341,-222000.0,0.00046465,2]
[355746671,1741527038351,-500.0,0.00046473,10]
[355746672,1741527038361,-500.0,0.00046473,10]
[355746673,1741527038370,-500.0,0.00046473,10]
[355746674,1741527038379,-500.0,0.00046473,10]
[355746675,1741527038388,-500.0,0.00046473,10]
[355746676,1741527038398,-500.0,0.00046473,10]
[355746677,1741527038407,-500.0,0.00046473,10]
[355746678,1741527038417,-267.583703,0.00046532,2]
[355746679,1741527038427,-2000.0,0.00046535,4]
[355746680,1741527038436,-21553.2717408,0.00046555,4]
[355746681,1741527038445,-86213.0869633,0.00046565,4]
[355746682,1741527038455,-508.01585595,0.00046573,10]
[355746683,1741527038465,-500.0,0.00046573,10]
[355746684,1741527038475,-500.0,0.00046573,10]
[355746685,1741527038484,-500.0,0.00046573,10]
[355746686,1741527038493,-500.0,0.00046573,10]
[355746687,1741527038503,-150.0,0.00046573,3]
[355746688,1741527038513,-201.38687997,0.00046573,10]
[355746689,1741527038522,-1000.0,0.00046575,2]
[355746690,1741527038532,-500.0,0.00046575,120]
[355746691,1741527038542,-500.0,0.00046575,120]
[355746692,1741527038553,-500.0,0.00046575,120]
[355746693,1741527038563,-500.0,0.00046575,120]
[355746694,1741527038573,-416.66666667,0.00046575,7]
[355746695,1741527038582,-500.0,0.00046575,120]
[355746696,1741527038595,-500.0,0.00046575,120]
[355746697,1741527038605,-500.0,0.00046575,120]
[355746698,1741527038615,-259.88390194,0.00046575,120]
[355746699,1741527038624,-500.0,0.00046575,120]
[355746700,1741527038635,-500.0,0.00046575,120]
[355746701,1741527038644,-510.61303304,0.00046575,120]
[355746702,1741527038654,-381.20780864,0.00046575,120]
[355746703,1741527038664,-500.0,0.00046575,120]
[355746704,1741527038675,-500.0,0.00046575,120]
[355746705,1741527038686,-500.0,0.00046575,120]
[355746706,1741527038696,-500.0,0.00046575,120]
[355746707,1741527038706,-537.24437351,0.00046575,120]
[355746708,1741527038716,-500.0,0.00046575,120]
[355746709,1741527038725,-540.19320595,0.00046575,120]
[355746710,1741527038735,-500.0,0.00046575,120]
[355746711,1741527038745,-500.0,0.00046575,120]
[355746712,1741527038754,-500.0,0.00046575,120]
[355746713,1741527038764,-519.22886562,0.00046575,120]
[355746714,1741527038773,-500.0,0.00046575,120]
[355746715,1741527038783,-500.0,0.00046575,120]
[355746716,1741527038793,-500.0,0.00046575,120]
[355746717,1741527038803,-500.0,0.00046575,120]
[355746718,1741527038812,-500.0,0.00046575,120]
[355746719,1741527038822,-500.0,0.00046575,120]
[355746720,1741527038832,-500.0,0.00046575,120]
[355746721,1741527038842,-500.0,0.00046575,120]
[355746722,1741527038851,-500.0,0.00046575,120]
[355746723,1741527038860,-500.0,0.00046575,120]
[355746724,1741527038870,-500.0,0.00046575,120]
[355746725,1741527038880,-500.0,0.00046575,120]
[355746726,1741527038889,-500.0,0.00046575,120]
[355746727,1741527038899,-500.0,0.00046575,120]
[355746728,1741527038908,-570.82403957,0.00046575,120]
[355746729,1741527038918,-500.0,0.00046575,120]
[355746730,1741527038927,-500.0,0.00046575,120]
[355746731,1741527038938,-500.0,0.00046575,120]
[355746732,1741527038949,-500.0,0.00046575,120]
[355746733,1741527038958,-500.0,0.00046575,120]
[355746734,1741527038968,-500.0,0.00046575,120]
[355746735,1741527038979,-500.0,0.00046575,120]
[355746736,1741527038988,-500.0,0.00046575,120]
[355746737,1741527038998,-500.0,0.00046575,120]
[355746738,1741527039009,-785.13,0.00046575,120]
[355746739,1741527039019,-366.573347,0.00046575,120]
[355746740,1741527039029,-500.0,0.00046575,120]
[355746741,1741527039038,-500.0,0.00046575,120]
[355746742,1741527039050,-500.0,0.00046575,120]
[355746743,1741527039060,-500.0,0.00046575,120]
[355746744,1741527039069,-500.0,0.00046575,120]
[355746745,1741527039079,-500.0,0.00046575,120]
[355746746,1741527039089,-503.47982484,0.00046575,120]
[355746747,1741527039098,-500.0,0.00046575,120]
[355746748,1741527039107,-156.1916249,0.00046575,120]
[355746749,1741527039117,-690.91,0.00046575,120]
[355746750,1741527039127,-500.0,0.00046575,120]
[355746751,1741527039136,-500.0,0.00046575,120]
[355746752,1741527039146,-500.0,0.00046575,120]
[355746753,1741527039155,-500.0,0.00046575,15]
[355746754,1741527039165,-3323.51,0.00046575,120]
[355746755,1741527039175,-500.0,0.00046575,120]
[355746756,1741527039185,-500.0,0.00046575,120]
[355746757,1741527039194,-681.57,0.00046575,120]
[355746758,1741527039203,-500.0,0.00046575,120]
[355746759,1741527039213,-500.0,0.00046575,120]
[355746761,1741527039223,-500.0,0.00046575,120]
[355746762,1741527039233,-500.0,0.00046575,120]
[355746763,1741527039242,-500.0,0.00046575,120]
[355746764,1741527039252,-1450.07,0.00046575,120]
[355746765,1741527039261,-500.0,0.00046575,120]
[355746766,1741527039271,-770.07,0.00046575,120]
[355746767,1741527039280,-500.0,0.00046575,120]
[355746768,1741527039290,-500.0,0.00046575,120]
[355746770,1741527039300,-500.0,0.00046575,120]
[355746771,1741527039310,-500.0,0.00046575,120]
[355746772,1741527039319,-500.0,0.00046575,120]
[355746773,1741527039329,-511.09173217,0.00046575,120]
[355746774,1741527039339,-500.0,0.00046575,120]
[355746775,1741527039349,-738.88,0.00046575,120]
[355746776,1741527039359,-500.0,0.00046575,120]
[355746777,1741527039368,-500.0,0.00046575,120]
[355746779,1741527039378,-183.57938543,0.00046575,120]
[355746781,1741527039387,-500.0,0.00046575,120]
[355746782,1741527039397,-500.0,0.00046575,120]
[355746783,1741527039407,-500.0,0.00046575,120]
[355746784,1741527039417,-500.0,0.00046575,120]
[355746785,1741527039426,-500.0,0.00046575,120]
[355746786,1741527039436,-500.0,0.00046575,120]
[355746787,1741527039445,-500.0,0.00046575,120]
[355746788,1741527039455,-540.94958097,0.00046575,120]
[355746789,1741527039464,-500.0,0.00046575,120]
[355746790,1741527039474,-500.0,0.00046575,120]
[355746791,1741527039483,-500.0,0.00046575,120]
[355746792,1741527039492,-500.0,0.00046575,120]
[355746793,1741527039586,-500.0,0.00046575,120]
[355746794,1741527039603,-500.0,0.00046575,120]
[355746795,1741527039613,-200.74601307,0.00046575,120]
[355746796,1741527039623,-500.0,0.00046575,120]
[355746797,1741527039634,-619.48983115,0.00046575,120]
[355746798,1741527039643,-500.0,0.00046575,120]
[355746799,1741527039654,-500.0,0.00046575,120]
[355746800,1741527039664,-500.0,0.00046575,120]
[355746801,1741527039674,-500.0,0.00046575,120]
[355746802,1741527039684,-500.0,0.00046575,120]
[355746803,1741527039694,-500.0,0.00046575,120]
[355746804,1741527039704,-500.0,0.00046575,120]
[355746805,1741527039713,-500.0,0.00046575,120]
[355746806,1741527039723,-533.0182187,0.00046575,120]
[355746808,1741527039733,-500.0,0.00046575,120]
[355746809,1741527039742,-500.0,0.00046575,120]
[355746810,1741527039752,-500.0,0.00046575,120]
[355746811,1741527039763,-500.0,0.00046575,120]
[355746812,1741527039773,-500.0,0.00046575,120]
[355746813,1741527039783,-500.0,0.00046575,120]
[355746814,1741527039793,-500.0,0.00046575,120]
[355746815,1741527039802,-500.0,0.00046575,120]
[355746816,1741527039812,-500.0,0.00046575,120]
[355746817,1741527039821,-500.0,0.00046575,120]
[355746818,1741527039832,-500.0,0.00046575,120]
[355746819,1741527039842,-500.0,0.00046575,120]
[355746820,1741527039851,-500.0,0.00046575,120]
[355746821,1741527039861,-531.19,0.00046575,120]
[355746822,1741527039871,-500.0,0.00046575,120]
[355746823,1741527039880,-529.44,0.00046575,120]
[355746824,1741527039890,-500.0,0.00046575,120]
[355746825,1741527039901,-291.00774601,0.00046575,120]
[355746826,1741527039910,-500.0,0.00046575,120]
[355746827,1741527039920,-811.93,0.00046575,120]
[355746828,1741527039930,-500.0,0.00046575,120]
[355746829,1741527039939,-1232.22,0.00046575,120]
[355746830,1741527039949,-500.0,0.00046575,120]
[355746831,1741527039958,-500.0,0.00046575,120]
[355746832,1741527039968,-500.0,0.00046575,120]
[355746833,1741527039978,-4137.48,0.00046575,120]
[355746835,1741527039987,-155.79946396,0.00046575,120]
[355746837,1741527039996,-500.0,0.00046575,120]
[355746839,1741527040006,-500.0,0.00046575,120]
[355746841,1741527040015,-999.0,0.00046575,120]
[355746843,1741527040025,-500.0,0.00046575,120]
[355746845,1741527040034,-500.0,0.00046575,120]
[355746847,1741527040043,-500.0,0.00046575,120]
[355746848,1741527040053,-500.0,0.00046575,120]
[355746850,1741527040063,-2853.72,0.00046575,120]
[355746851,1741527040073,-7019.36,0.00046575,120]
[355746852,1741527040083,-520.85384948,0.00046575,120]
[355746853,1741527040092,-500.0,0.00046575,120]
[355746854,1741527040101,-1060.55,0.00046575,120]
[355746855,1741527040111,-500.0,0.00046575,120]
[355746856,1741527040121,-883.67,0.00046575,120]
[355746857,1741527040133,-500.0,0.00046575,120]
[355746858,1741527040143,-528.94134562,0.00046575,120]
[355746859,1741527040154,-1640.43,0.00046575,120]
[355746860,1741527040163,-1063.95,0.00046575,120]
[355746861,1741527040173,-500.0,0.00046575,120]
[355746862,1741527040182,-500.0,0.00046575,120]
[355746863,1741527040191,-500.0,0.00046575,120]
[355746864,1741527040201,-500.0,0.00046575,120]
[355746865,1741527040210,-500.0,0.00046575,120]
[355746866,1741527040220,-500.0,0.00046575,120]
[355746867,1741527040230,-500.0,0.00046575,120]
[355746868,1741527040239,-500.0,0.00046575,120]
[355746869,1741527040250,-997.86,0.00046575,120]
[355746870,1741527040260,-500.0,0.00046575,120]
[355746871,1741527040271,-500.0,0.00046575,120]
[355746872,1741527040281,-500.0,0.00046575,120]
[355746873,1741527040291,-500.0,0.00046575,120]
[355746874,1741527040302,-500.0,0.00046575,120]
[355746875,1741527040311,-500.0,0.00046575,120]
[355746876,1741527040322,-500.0,0.00046575,120]
[355746877,1741527040333,-500.0,0.00046575,120]
[355746878,1741527040342,-500.0,0.00046575,120]
[355746879,1741527040352,-500.0,0.00046575,120]
[355746880,1741527040362,-500.0,0.00046575,120]
[355746881,1741527040371,-500.0,0.00046575,120]
[355746882,1741527040382,-500.0,0.00046575,120]
[355746883,1741527040392,-500.0,0.00046575,120]
[355746884,1741527040413,-559.1,0.00046575,120]
[355746885,1741527040423,-2162.29,0.00046575,120]
[355746886,1741527040434,-37384.52,0.00046575,7]
[355746887,1741527040443,-500.0,0.00046575,120]
[355746888,1741527040454,-500.0,0.00046575,120]
[355746889,1741527040463,-500.0,0.00046575,120]
[355746890,1741527040473,-1007.13,0.00046575,120]
[355746891,1741527040483,-500.0,0.00046575,120]
[355746892,1741527040493,-502.62232803,0.00046575,120]
[355746893,1741527040504,-1095.26,0.00046575,120]
[355746894,1741527040514,-500.0,0.00046575,120]
[355746895,1741527040524,-738.26,0.00046575,120]
[355746896,1741527040534,-538.5,0.00046575,120]
[355746897,1741527040544,-500.0,0.00046575,120]
[355746898,1741527040554,-500.0,0.00046575,120]
[355746899,1741527040565,-500.0,0.00046575,120]
[355746900,1741527040575,-610.49,0.00046575,120]
[355746901,1741527040588,-500.0,0.00046575,120]
[355746902,1741527040597,-500.0,0.00046575,120]
[355746903,1741527040607,-256.5808932,0.00046575,120]
[355746904,1741527040617,-500.0,0.00046575,120]
[355746905,1741527040628,-1632.21,0.00046575,30]
[355746906,1741527040638,-602.29,0.00046575,120]
[355746907,1741527040648,-500.0,0.00046575,120]
[355746908,1741527040657,-534.89,0.00046575,120]
[355746909,1741527040669,-500.0,0.00046575,120]
[355746910,1741527040678,-500.0,0.00046575,120]
[355746911,1741527040687,-500.0,0.00046575,120]
[355746912,1741527040697,-526.38702251,0.00046575,120]
[355746913,1741527040706,-500.0,0.00046575,120]
[355746914,1741527040716,-1222.94,0.00046575,120]
[355746915,1741527040726,-500.0,0.00046575,120]
[355746916,1741527040735,-500.0,0.00046575,120]
[355746917,1741527040744,-500.0,0.00046575,120]
[355746918,1741527040754,-500.0,0.00046575,120]
[355746919,1741527040763,-500.0,0.00046575,120]
[355746920,1741527040778,-500.0,0.00046575,120]
[355746921,1741527040788,-2177.01,0.00046575,120]
[355746922,1741527040798,-500.0,0.00046575,120]
[355746923,1741527040808,-500.0,0.00046575,2]
[355746924,1741527040818,-500.0,0.00046575,120]
[355746925,1741527040828,-12622.6,0.00046575,2]
[355746926,1741527040838,-500.0,0.00046575,120]
[355746927,1741527040848,-500.0,0.00046575,120]
[355746928,1741527040858,-500.0,0.00046575,120]
[355746929,1741527040868,-565.38,0.00046575,120]
[355746930,1741527040878,-500.0,0.00046575,120]
[355746931,1741527040888,-500.0,0.00046575,120]
[355746932,1741527040898,-500.0,0.00046575,120]
[355746933,1741527040908,-500.0,0.00046575,2]
[355746934,1741527040918,-553.02,0.00046575,120]
[355746935,1741527040928,-500.0,0.00046575,120]
[355746936,1741527040938,-690.08,0.00046575,120]
[355746937,1741527040948,-202.23337734,0.00046575,120]
[355746938,1741527040958,-976.92,0.00046575,2]
[355746939,1741527040968,-500.0,0.00046575,120]
[355746940,1741527040978,-474.819265,0.00046575,2]
[355746941,1741527040987,-162.5,0.00046603,120]
[355746942,1741527040997,-200.67557676,0.00046773,10]
[355746943,1741527041008,-171374.54553631,0.000468,30]
[355746944,1741527041018,-162.5,0.00046959,120]
[355746945,1741527041028,-277.31900099,0.00047,120]
[355746946,1741527041038,-672633.3067354,0.00047,120]
[355746947,1741527041047,-184.19347013,0.00047,120]
[355746948,1741527041058,-151.0,0.00047,120]
[355746949,1741527041067,-151.0,0.00047,120]
[355746950,1741527041077,-151.0,0.00047,120]
[355746951,1741527041087,-1000.0,0.0004709,6]
[355746952,1741527041097,-1019.86499018,0.00047121,10]
[355746953,1741527041106,-253.35418894,0.00047121,3]
[355746954,1741527041116,-1000.0,0.00047123,2]
[355746955,1741527041125,-500.0,0.00047123,120]
[355746956,1741527041134,-500.0,0.00047123,120]
[355746957,1741527041144,-500.0,0.00047123,120]
[355746958,1741527041153,-178.6158721,0.00047123,120]
[355746959,1741527041162,-500.0,0.00047123,120]
[355746960,1741527041172,-500.0,0.00047123,120]
[355746961,1741527041182,-500.0,0.00047123,120]
[355746962,1741527041191,-500.0,0.00047123,120]
[355746963,1741527041201,-500.0,0.00047123,120]
[355746964,1741527041210,-500.0,0.00047123,120]
[355746965,1741527041219,-338.44191962,0.00047123,120]
[355746966,1741527041229,-500.0,0.00047123,120]
[355746967,1741527041238,-537.85084321,0.00047123,120]
[355746968,1741527041248,-500.0,0.00047123,120]
[355746969,1741527041258,-537.53910016,0.00047123,120]
[355746970,1741527041268,-500.0,0.00047123,120]
[355746971,1741527041277,-500.0,0.00047123,120]
[355746972,1741527041287,-500.0,0.00047123,120]
[355746973,1741527041296,-500.0,0.00047123,120]
[355746974,1741527041305,-500.0,0.00047123,120]
[355746975,1741527041315,-500.0,0.00047123,120]
[355746976,1741527041325,-500.0,0.00047123,120]
[355746977,1741527041335,-500.0,0.00047123,120]
[355746978,1741527041344,-500.0,0.00047123,120]
[355746979,1741527041354,-558.08831321,0.00047123,120]
[355746980,1741527041483,-500.0,0.00047123,120]
[355746981,1741527041495,-500.0,0.00047123,120]
[355746982,1741527041504,-500.0,0.00047123,120]
[355746983,1741527041514,-500.0,0.00047123,120]
[355746984,1741527041524,-533.43004553,0.00047123,120]
[355746985,1741527041534,-785.13,0.00047123,120]
[355746986,1741527041544,-500.0,0.00047123,120]
[355746987,1741527041554,-500.0,0.00047123,120]
[355746988,1741527041564,-500.0,0.00047123,120]
[355746989,1741527041574,-500.0,0.00047123,120]
[355746990,1741527041584,-175.68599056,0.00047123,120]
[355746991,1741527041597,-500.0,0.00047123,120]
[355746992,1741527041606,-500.0,0.00047123,120]
[355746993,1741527041615,-690.91,0.00047123,120]
[355746994,1741527041626,-500.0,0.00047123,120]
[355746995,1741527041635,-500.0,0.00047123,120]
[355746996,1741527041645,-500.0,0.00047123,120]
[355746997,1741527041654,-500.0,0.00047123,15]
[355746998,1741527041664,-3323.51,0.00047123,120]
[355746999,1741527041676,-500.0,0.00047123,120]
[355747000,1741527041685,-500.0,0.00047123,120]
[355747001,1741527041695,-681.57,0.00047123,120]
[355747002,1741527041704,-500.0,0.00047123,120]
[355747003,1741527041714,-500.0,0.00047123,120]
[355747004,1741527041723,-500.0,0.00047123,120]
[355747005,1741527041733,-500.0,0.00047123,120]
[355747006,1741527041742,-500.0,0.00047123,120]
[355747007,1741527041752,-1450.07,0.00047123,120]
[355747008,1741527041761,-497.86638659,0.00047123,120]
[355747009,1741527041771,-770.07,0.00047123,120]
[355747010,1741527041780,-500.0,0.00047123,120]
[355747011,1741527041790,-500.0,0.00047123,120]
[355747012,1741527041799,-500.0,0.00047123,120]
[355747013,1741527041809,-500.0,0.00047123,120]